[Event "5th Cesme Open 2017"]
[Site "Cesme"]
[Date "2017.06.14"]
[Round "5.21"]
[White "Ersoy, Bora"]
[Black "Safarli, Aykhan"]
[Result "1-0"]
[ECO "D85"]
[WhiteElo "1675"]
[BlackElo "1595"]
[Annotator "NA RC"]
[PlyCount "155"]
[EventType "swiss"]
[EventCountry "TUR"]
[SourceTitle "playchess.com"]
[Source "ChessBase"]
[SourceQuality "1"]
[TimeControl "5400+30"]

1. d4 d5 2. c4 Nf6 3. cxd5 g6 4. Nc3 Nxd5 5. e4 Nxc3 6. bxc3 Bg7 7. Bc4 O-O 8. Ne2 c5 9. O-O cxd4 10. cxd4 Nc6 11. Be3 {[%emt 0:04:30]} Na5 {[%emt 0:05:00]} 12. Bb3 {[%emt 0:05:30]} b5 {[%emt 0:00:30]} 13. Bd5 {[%emt 0:10:30]} Bb7 {[%emt 0:03:30]} 14. Bxb7 {[%emt 0:03:30]} Nxb7 {[%emt 0:00:30]} 15. Rb1 {[%emt 0:00:30]} a6 {[%emt 0:02:30]} 16. a4 {[%emt 0:13:30]} Nd6 {[%emt 0:00:00]} 17. e5 {[%emt 0:05:30]} Nc4 {[%emt 0:00:00]} 18. axb5 {[%emt 0:01:30]} Na3 {[%emt 0:00:30]} 19. Ra1 {[%emt 0:02:30]} Nxb5 {[%emt 0:00:30]} 20. Qb3 {[%emt 0:01:30]} Qd7 {[%emt 0:02:30]} 21. Ra5 {[%emt 0:06:30]} Rfb8 {[%emt 0:13:30]} 22. Qa4 {[%emt 0:05:30]} Qb7 {[%emt 0:03:30]} 23. Ra1 {[%emt 0:02:30]} e6 {[%emt 0:07:30]} 24. h3 {[%emt 0:08:30]} Nc7 {[%emt 0:02:30]} 25. Nf4 {[%emt 0:05:30]} Bh6 {[%emt 0:12:30]} 26. Nd5 {[%emt 0:07:06]} Nxd5 {[%emt 0:04:30]} 27. Bxh6 {[%emt 0:00:09]} Nc3 {[%emt 0:07:30]} 28. Qc2 {[%emt 0:02:10]} Qb4 {[%emt 0:01:30]} 29. Rc5 {[%emt 0:06:19]} Rc8 {[%emt 0:27:12]} 30. Rxa6 {[%emt 0:01:26]} Rab8 {[%emt 0:01:12]} 31. Rac6 {[%emt 0:02:07]} Rxc6 {[%emt 0:00:01]} 32. Rxc6 {[%emt 0:00:11]} Qb1+ {[%emt 0:00:17]} 33. Qxb1 {[%emt 0:00:16]} Nxb1 {[%emt 0:00:02]} 34. Bc1 {[%emt 0:01:24]} Kg7 {[%emt 0:01:21]} 35. Rc7 {[%emt 0:00:08]} Kf8 {[%emt 0:04:16]} 36. g3 {[%emt 0:00:40]} Ke8 {[%emt 0:00:33]} 37. Kg2 {[%emt 0:00:16]} Rb4 {[%emt 0:01:15]} 38. Bg5 {[%emt 0:01:05]} Rb8 {[%emt 0:01:14]} 39. Be7 {[%emt 0:00:27]} Nc3 {[%emt 0:02:31]} 40. Bd6 {[%emt 0:01:00]} Nd5 {[%emt 0:01:12]} 41. Rxf7 {[%emt 0:00:07]} Kxf7 {[%emt 0:00:11]} 42. Bxb8 {[%emt 0:00:04]} Nb4 {[%emt 0:00:58]} 43. Bd6 {[%emt 0:00:13]} Nd5 {[%emt 0:00:35]} 44. Kf3 {[%emt 0:00:13]} h6 {[%emt 0:00:20]} 45. h4 {[%emt 0:00:26]} Ke8 {[%emt 0:00:15]} 46. g4 {[%emt 0:01:31]} Kf7 {[%emt 0:00:40]} 47. h5 {[%emt 0:01:21]} g5 {[%emt 0:00:44]} 48. Ba3 {[%emt 0:00:05]} Nc7 {[%emt 0:00:36]} 49. Ke4 {[%emt 0:00:39]} Nd5 {[%emt 0:00:23]} 50. Bc1 {[%emt 0:00:24]} Nc3+ {[%emt 0:00:02]} 51. Kf3 {[%emt 0:00:51]} Nd5 {[%emt 0:00:34]} 52. Kg3 {[%emt 0:00:15]} Nc3 {[%emt 0:00:05]} 53. Be3 {[%emt 0:00:11]} Kg7 {[%emt 0:00:44]} 54. f4 {[%emt 0:01:34]} gxf4+ {[%emt 0:01:06]} 55. Kxf4 {[%emt 0:00:04]} Nd5+ {[%emt 0:00:20]} 56. Kf3 {[%emt 0:00:05]} Ne7 {[%emt 0:00:43]} 57. g5 {[%emt 0:01:30]} hxg5 {[%emt 0:00:10]} 58. Bxg5 {[%emt 0:00:04]} Nf5 {[%emt 0:00:03]} 59. Be3 {[%emt 0:00:58]} Ne7 {[%emt 0:00:42]} 60. Ke4 {[%emt 0:00:30]} Nd5 {[%emt 0:00:11]} 61. Kd3 {[%emt 0:00:15]} Kf7 {[%emt 0:00:25]} 62. Bg5 {[%emt 0:00:17]} Nb6 {[%emt 0:00:23]} 63. Kc3 {[%emt 0:00:16]} Ke8 {[%emt 0:00:36]} 64. Kb4 {[%emt 0:00:21]} Nd5+ {[%emt 0:01:32]} 65. Kc5 {[%emt 0:00:24]} Nc3 {[%emt 0:00:12]} 66. Bf6 {[%emt 0:00:37]} Ne4+ {[%emt 0:00:14]} 67. Kc6 {[%emt 0:00:10]} Kf7 {[%emt 0:00:48]} 68. Kd7 {[%emt 0:00:33]} Ng3 {[%emt 0:00:27]} 69. h6 {[%emt 0:00:34]} Kg6 {[%emt 0:00:01]} 70. Kxe6 {[%emt 0:00:14]} Nf5 {[%emt 0:00:34]} 71. h7 {[%emt 0:01:46]} Nxd4+ {[%emt 0:01:10]} 72. Kd5 {[%emt 0:00:05]} Kxh7 {[%emt 0:00:38]} 73. Kxd4 {[%emt 0:00:06]} Kg8 {[%emt 0:00:02]} 74. Bh4 {[%emt 0:00:14]} Kf7 {[%emt 0:00:01]} 75. Be1 {[%emt 0:00:07]} Ke6 {[%emt 0:00:07]} 76. Ke4 {[%emt 0:00:02]} Ke7 {[%emt 0:00:05]} 77. Kf5 {[%emt 0:00:06]} Kf7 {[%emt 0:00:09]} 78. e6+ {[%emt 0:00:04]} 1-0

[Event "5th Cesme Open 2017"]
[Site "Cesme"]
[Date "2017.06.14"]
[Round "5.22"]
[White "Sayar, Bora"]
[Black "Rahmani, Jamshid"]
[Result "0-1"]
[ECO "A46"]
[WhiteElo "1214"]
[BlackElo "1692"]
[Annotator "NA"]
[PlyCount "154"]
[EventType "swiss"]
[EventCountry "TUR"]
[SourceTitle "playchess.com"]
[Source "ChessBase"]
[SourceQuality "1"]
[TimeControl "5400+30"]

1. d4 Nf6 2. Bg5 e6 3. e4 h6 4. Bxf6 Qxf6 5. Nf3 {[%emt 0:00:30]} Nc6 {[%emt 0:09:00]} 6. c3 {[%emt 0:00:30]} d5 {[%emt 0:09:30]} 7. e5 {[%emt 0:00:30]} Qg6 {[%emt 0:01:30]} 8. Qd3 {[%emt 0:00:30]} Qxd3 {[%emt 0:01:30]} 9. Bxd3 {[%emt 0:00:30]} Bd7 {[%emt 0:01:30]} 10. Nbd2 {[%emt 0:00:30]} Be7 {[%emt 0:01:30]} 11. Rc1 {[%emt 0:00:30]} O-O {[%emt 0:00:30]} 12. O-O {[%emt 0:00:00]} a6 {[%emt 0:02:30]} 13. a4 {[%emt 0:02:00]} b5 {[%emt 0:00:30]} 14. axb5 {[%emt 0:00:30]} axb5 {[%emt 0:00:30]} 15. Bxb5 {[%emt 0:00:30]} Nxe5 {[%emt 0:00:30]} 16. Bxd7 {[%emt 0:00:30]} Nxd7 {[%emt 0:00:00]} 17. Ra1 {[%emt 0:00:30]} c5 {[%emt 0:01:00]} 18. Nb3 {[%emt 0:01:30]} cxd4 {[%emt 0:01:30]} 19. Nbxd4 {[%emt 0:00:30]} Bf6 {[%emt 0:01:30]} 20. h3 {[%emt 0:01:30]} Nc5 {[%emt 0:01:30]} 21. Rfd1 {[%emt 0:00:30]} Rfb8 {[%emt 0:01:30]} 22. b4 {[%emt 0:00:30]} Ne4 {[%emt 0:00:30]} 23. Rxa8 {[%emt 0:03:30]} Rxa8 {[%emt 0:00:30]} 24. Rc1 {[%emt 0:00:30]} Rc8 {[%emt 0:00:30]} 25. b5 {[%emt 0:00:30]} Rb8 {[%emt 0:04:30]} 26. Kf1 {[%emt 0:01:30]} Nd6 {[%emt 0:04:30]} 27. Rb1 {[%emt 0:00:30]} e5 {[%emt 0:02:30]} 28. Nc6 {[%emt 0:00:30]} Rxb5 {[%emt 0:00:30]} 29. Rxb5 {[%emt 0:00:30]} Nxb5 {[%emt 0:00:30]} 30. Ncxe5 {[%emt 0:00:00]} Nxc3 {[%emt 0:00:30]} 31. Ke1 {[%emt 0:00:00]} Kf8 {[%emt 0:02:30]} 32. Nd7+ {[%emt 0:01:30]} Ke7 {[%emt 0:00:30]} 33. Nxf6 {[%emt 0:00:30]} Kxf6 {[%emt 0:00:00]} 34. Kd2 {[%emt 0:00:00]} Ne4+ {[%emt 0:00:00]} 35. Ke3 {[%emt 0:00:00]} Ke6 {[%emt 0:00:30]} 36. Nd4+ {[%emt 0:01:30]} Ke5 {[%emt 0:03:30]} 37. f4+ {[%emt 0:00:30]} Kf6 {[%emt 0:00:30]} 38. Nb5 {[%emt 0:00:30]} g5 {[%emt 0:04:30]} 39. Nc7 {[%emt 0:00:30]} gxf4+ {[%emt 0:01:30]} 40. Kxf4 {[%emt 0:00:30]} Nc3 {[%emt 0:00:30]} 41. Ke3 {[%emt 0:00:30]} Ke5 {[%emt 0:00:30]} 42. Na6 {[%emt 0:00:30]} d4+ {[%emt 0:01:30]} 43. Kd3 {[%emt 0:00:30]} Nd5 {[%emt 0:00:30]} 44. g3 {[%emt 0:00:30]} f5 {[%emt 0:01:30]} 45. h4 {[%emt 0:00:30]} f4 {[%emt 0:02:30]} 46. gxf4+ {[%emt 0:00:00]} Nxf4+ {[%emt 0:00:30]} 47. Kd2 {[%emt 0:00:00]} Kf5 {[%emt 0:00:30]} 48. Nc5 {[%emt 0:00:30]} Kg4 {[%emt 0:00:30]} 49. Nb3 {[%emt 0:00:30]} Ne6 {[%emt 0:00:30]} 50. Ke2 {[%emt 0:00:00]} Kxh4 {[%emt 0:01:30]} 51. Kf2 {[%emt 0:00:00]} Kg4 {[%emt 0:00:30]} 52. Kg2 {[%emt 0:00:30]} Nf4+ {[%emt 0:00:30]} 53. Kh2 {[%emt 0:00:30]} d3 {[%emt 0:00:30]} 54. Kg1 {[%emt 0:00:30]} Kf3 {[%emt 0:01:30]} 55. Kh1 {[%emt 0:01:30]} Ke3 {[%emt 0:01:30]} 56. Kh2 {[%emt 0:00:30]} h5 {[%emt 0:01:30]} 57. Kg3 {[%emt 0:00:30]} Ne2+ {[%emt 0:00:30]} 58. Kh4 {[%emt 0:00:30]} Nd4 {[%emt 0:00:30]} 59. Na5 {[%emt 0:00:30]} Kd2 {[%emt 0:02:30]} 60. Nc4+ {[%emt 0:00:30]} Kc3 {[%emt 0:00:30]} 61. Ne3 {[%emt 0:00:30]} d2 {[%emt 0:00:30]} 62. Nd1+ {[%emt 0:00:30]} Kc2 {[%emt 0:01:30]} 63. Nf2 {[%emt 0:00:30]} Ne2 {[%emt 0:04:30]} 64. Kxh5 {[%emt 0:00:30]} Nf4+ {[%emt 0:00:30]} 65. Kh4 {[%emt 0:00:30]} Nd3 {[%emt 0:01:30]} 66. Ng4 {[%emt 0:00:30]} Kc1 {[%emt 0:01:30]} 67. Ne3 {[%emt 0:00:30]} Ne1 {[%emt 0:01:30]} 68. Kg3 {[%emt 0:00:30]} Nc2 {[%emt 0:00:30]} 69. Nxc2 {[%emt 0:00:30]} Kxc2 {[%emt 0:00:00]} 70. Kf2 {[%emt 0:00:30]} d1=Q {[%emt 0:00:00]} 71. Ke3 {[%emt 0:00:30]} Qd5 {[%emt 0:00:30]} 72. Kf2 {[%emt 0:00:00]} Qe4 {[%emt 0:00:30]} 73. Kg1 {[%emt 0:00:00]} Qf3 {[%emt 0:00:30]} 74. Kh2 {[%emt 0:00:30]} Qg4 {[%emt 0:00:30]} 75. Kh1 {[%emt 0:00:30]} Kd2 {[%emt 0:00:00]} 76. Kh2 {[%emt 0:00:00]} Ke2 {[%emt 0:00:00]} 77. Kh1 {[%emt 0:00:00]} Kf2 {[%emt 0:00:30]} 0-1

[Event "5th Cesme Open 2017"]
[Site "Cesme"]
[Date "2017.06.14"]
[Round "5.23"]
[White "Bozkurt, Serkan"]
[Black "Barik, Ertunc Bahadir"]
[Result "0-1"]
[ECO "B06"]
[WhiteElo "1589"]
[BlackElo "1538"]
[Annotator "NA"]
[PlyCount "34"]
[EventType "swiss"]
[EventCountry "TUR"]
[SourceTitle "playchess.com"]
[Source "ChessBase"]
[SourceQuality "1"]
[TimeControl "5400+30"]

1. d4 g6 2. Nf3 Bg7 3. e4 d6 4. Be2 Nd7 {[%emt 0:01:30]} 5. c3 {[%emt 0:06:30]} e5 {[%emt 0:00:30]} 6. Qc2 {[%emt 0:00:30]} Ngf6 {[%emt 0:00:30]} 7. Be3 {[%emt 0:03:30]} O-O {[%emt 0:00:30]} 8. h3 {[%emt 0:00:30]} h6 {[%emt 0:06:30]} 9. Nbd2 {[%emt 0:05:30]} Nh7 {[%emt 0:01:30]} 10. Qb3 {[%emt 0:10:30]} Kh8 {[%emt 0:01:30]} 11. Nc4 {[%emt 0:04:30]} f5 {[%emt 0:03:30]} 12. exf5 {[%emt 0:01:30]} gxf5 {[%emt 0:01:30]} 13. g3 {[%emt 0:05:30]} f4 {[%emt 0:03:30]} 14. Bd2 {[%emt 0:09:30]} b5 {[%emt 0:05:30]} 15. Nh4 {[%emt 0:05:30]} Qf6 {[%emt 0:02:30]} 16. Bd3 {[%emt 0:02:30]} bxc4 {[%emt 0:01:30]} 17. Ng6+ {[%emt 0:03:30]} Qxg6 {[%emt 0:00:30]} 0-1

[Event "5th Cesme Open 2017"]
[Site "Cesme"]
[Date "2017.06.14"]
[Round "5.24"]
[White "Yenice, Yusuf Erkan"]
[Black "Ekici, Caner"]
[Result "1/2-1/2"]
[ECO "B52"]
[WhiteElo "1500"]
[BlackElo "1681"]
[Annotator "NA RC"]
[PlyCount "171"]
[EventType "swiss"]
[EventCountry "TUR"]
[SourceTitle "playchess.com"]
[Source "ChessBase"]
[SourceQuality "1"]
[TimeControl "5400+30"]

1. e4 c5 2. Nf3 d6 3. Bb5+ Bd7 4. Bxd7+ Nxd7 5. O-O Ngf6 {[%emt 0:05:00]} 6. Qe2 {[%emt 0:05:00]} g6 {[%emt 0:00:30]} 7. c3 {[%emt 0:00:30]} Bg7 {[%emt 0:00:30]} 8. d4 {[%emt 0:00:30]} O-O {[%emt 0:00:30]} 9. Rd1 {[%emt 0:03:30]} Qc7 {[%emt 0:10:30]} 10. e5 {[%emt 0:02:30]} dxe5 {[%emt 0:17:30]} 11. dxe5 {[%emt 0:00:00]} Ne8 {[%emt 0:00:30]} 12. e6 {[%emt 0:00:00]} Ne5 {[%emt 0:01:30]} 13. Nxe5 {[%emt 0:14:30]} Bxe5 {[%emt 0:04:30]} 14. Rd7 {[%emt 0:01:30]} Qb8 {[%emt 0:02:30]} 15. Bh6 {[%emt 0:01:30]} Ng7 {[%emt 0:07:30]} 16. Rxe7 {[%emt 0:05:30]} fxe6 {[%emt 0:02:30]} 17. Bxg7 {[%emt 0:01:30]} Bxg7 {[%emt 0:00:30]} 18. Qxe6+ {[%emt 0:00:30]} Kh8 {[%emt 0:00:00]} 19. Na3 {[%emt 0:02:30]} b6 {[%emt 0:08:00]} 20. g3 {[%emt 0:09:30]} Rf6 {[%emt 0:00:30]} 21. Qd7 {[%emt 0:01:30]} Qg8 {[%emt 0:01:30]} 22. Rae1 {[%emt 0:02:30]} Bf8 {[%emt 0:20:45]} 23. Re8 {[%emt 0:08:30]} Rd6 {[%emt 0:06:34]} 24. Qxd6 {[%emt 0:05:30]} Rxe8 {[%emt 0:00:01]} 25. Rxe8 {[%emt 0:00:30]} Bxd6 {[%emt 0:00:00]} 26. Rxg8+ {[%emt 0:01:30]} Kxg8 {[%emt 0:00:03]} 27. Nb5 {[%emt 0:00:30]} Bb8 {[%emt 0:00:30]} 28. c4 {[%emt 0:00:30]} Kf7 {[%emt 0:00:30]} 29. f4 {[%emt 0:00:30]} Ke6 {[%emt 0:00:30]} 30. Kf2 {[%emt 0:00:30]} Kf5 {[%emt 0:00:30]} 31. Kf3 {[%emt 0:00:30]} h5 {[%emt 0:00:30]} 32. h3 {[%emt 0:00:30]} g5 {[%emt 0:00:30]} 33. g4+ {[%emt 0:00:30]} hxg4+ {[%emt 0:00:30]} 34. hxg4+ {[%emt 0:00:30]} Kf6 {[%emt 0:01:30]} 35. f5 {[%emt 0:13:30]} Ke5 {[%emt 0:00:01]} 36. Ke3 {[%emt 0:00:00]} a6 {[%emt 0:00:52]} 37. Nc3 {[%emt 0:00:00]} Bd6 {[%emt 0:00:58]} 38. a4 {[%emt 0:01:30]} Bc7 {[%emt 0:02:10]} 39. Ne4 {[%emt 0:01:30]} Bd8 {[%emt 0:00:05]} 40. Nf2 {[%emt 0:00:32]} Bf6 {[%emt 0:00:26]} 41. Nd3+ {[%emt 0:01:47]} Kd6 {[%emt 0:00:01]} 42. Ke4 {[%emt 0:00:38]} Kc6 {[%emt 0:00:01]} 43. b3 {[%emt 0:00:40]} Kd6 {[%emt 0:00:41]} 44. Ne1 {[%emt 0:02:48]} Kc6 {[%emt 0:01:17]} 45. Nc2 {[%emt 0:00:17]} b5 {[%emt 0:00:59]} 46. axb5+ {[%emt 0:01:14]} axb5 {[%emt 0:00:02]} 47. Ne3 {[%emt 0:00:17]} bxc4 {[%emt 0:00:24]} 48. bxc4 {[%emt 0:00:05]} Kd6 {[%emt 0:00:19]} 49. Nd5 {[%emt 0:00:19]} Bb2 {[%emt 0:00:51]} 50. Ne3 {[%emt 0:08:00]} Bf6 {[%emt 0:00:25]} 51. Nf1 {[%emt 0:00:16]} Kc6 {[%emt 0:00:21]} 52. Ne3 {[%emt 0:00:39]} Kd6 {[%emt 0:00:30]} 53. Nd5 {[%emt 0:00:30]} Bb2 {[%emt 0:00:30]} 54. Ne3 {[%emt 0:00:30]} Bf6 {[%emt 0:00:30]} 55. Nf1 {[%emt 0:00:30]} Kc6 {[%emt 0:00:30]} 56. Ng3 {[%emt 0:00:00]} Kd6 {[%emt 0:00:16]} 57. Nh5 {[%emt 0:00:08]} Bb2 {[%emt 0:00:02]} 58. Ng3 {[%emt 0:03:53]} Bf6 {[%emt 0:00:07]} 59. Kd3 {[%emt 0:02:21]} Ke5 {[%emt 0:00:46]} 60. Ne4 {[%emt 0:00:12]} Be7 {[%emt 0:00:03]} 61. Ke3 {[%emt 0:00:16]} Bf8 {[%emt 0:01:07]} 62. f6 {[%emt 0:01:40]} Bh6 {[%emt 0:02:02]} 63. Nxc5 {[%emt 0:01:04]} Kxf6 {[%emt 0:00:02]} 64. Ke4 {[%emt 0:00:18]} Bg7 {[%emt 0:00:17]} 65. Kd5 {[%emt 0:00:25]} Ke7 {[%emt 0:00:11]} 66. Ne6 {[%emt 0:01:28]} Bf6 {[%emt 0:00:29]} 67. c5 {[%emt 0:00:20]} Kd7 {[%emt 0:00:11]} 68. c6+ {[%emt 0:00:34]} Ke7 {[%emt 0:00:13]} 69. Nc5 {[%emt 0:01:57]} Kd8 {[%emt 0:00:01]} 70. Kd6 {[%emt 0:00:33]} Be7+ {[%emt 0:00:01]} 71. Kd5 {[%emt 0:00:02]} Bf6 {[%emt 0:00:07]} 72. Na6 {[%emt 0:01:05]} Bb2 {[%emt 0:01:11]} 73. Ke6 {[%emt 0:00:12]} Ba3 {[%emt 0:00:35]} 74. Kf5 {[%emt 0:00:42]} Bc1 {[%emt 0:00:01]} 75. Ke6 {[%emt 0:00:50]} Ba3 {[%emt 0:00:01]} 76. Kd5 {[%emt 0:00:21]} Bb2 {[%emt 0:01:33]} 77. Nc5 {[%emt 0:00:32]} Bf6 {[%emt 0:00:39]} 78. Ne6+ {[%emt 0:00:46]} Ke7 {[%emt 0:00:08]} 79. Nc5 {[%emt 0:00:33]} Kd8 {[%emt 0:00:01]} 80. Na6 {[%emt 0:00:35]} Bb2 {[%emt 0:00:03]} 81. Kc5 {[%emt 0:00:16]} Kc8 {[%emt 0:00:31]} 82. Kd6 {[%emt 0:00:43]} Ba3+ {[%emt 0:00:39]} 83. Ke6 {[%emt 0:00:28]} Bb2 {[%emt 0:00:39]} 84. Ke7 {[%emt 0:00:25]} Ba3+ {[%emt 0:00:02]} 85. Ke8 {[%emt 0:00:37]} Bd6 {[%emt 0:00:17]} 86. Kf7 {[%emt 0:00:26]} 1/2-1/2